bitfinex/quotes_ETHUSD_20250223
["timestamp","ask_amount","ask_price","bid_price","bid_amount"]
[1740349721704,5.25,2797.3,2797.2,3.575]
[1740349722001,5.25,2797.3,2797.1,3.7249281]
[1740349722156,5.25,2797.3,2797.2,3.575]
[1740349722556,5.25,2797.3,2797.1,3.7249281]
[1740349722774,5.25,2797.3,2797.1,7.2999781]
[1740349723357,5.25,2797.3,2797.1,3.7248481]
[1740349724199,5.25,2797.3,2797.1,0.1497981]
[1740349724363,0.7616,2797.2,2797.1,0.1497981]
[1740349727489,6.0116,2797.2,2797.1,0.1497981]
[1740349735451,5.25,2797.2,2797.1,4.5284281]
[1740349735619,0.8224,2798.2,2797.1,4.5284281]
[1740349735620,0.255,2797.6,2797.5,3.57462]
[1740349735943,1.35658465,2798.0,2797.8,3.57413]
[1740349736096,0.255,2797.9,2797.8,3.57413]
[1740349736701,0.95742532,2797.9,2797.8,3.57413]
[1740349737002,1.22518558,2797.9,2797.8,3.57413]
[1740349737200,1.22518558,2797.9,2797.7,3.57435]
[1740349738022,0.26776026,2797.9,2797.8,3.57423]
[1740349738223,0.255,2797.9,2797.8,3.57423]
[1740349738518,0.255,2797.9,2797.7,3.57429]
[1740349738731,0.255,2797.9,2797.6,3.57444]
[1740349739139,2.10898465,2797.8,2797.4,7.95289]
[1740349739316,2.10898465,2797.8,2797.5,3.57453]
[1740349739809,0.7524,2797.8,2797.5,3.57453]
[1740349740145,1.61158465,2797.9,2797.5,3.57453]
[1740349740445,1.61158465,2797.9,2797.5,3.57452]
[1740349740650,1.61158465,2797.9,2797.6,3.57444]
[1740349741947,1.61158465,2797.9,2797.4,4.37822]
[1740349742119,1.61158465,2797.9,2797.5,3.57461]
[1740349742498,1.61158465,2797.9,2797.6,3.57443]
[1740349743662,1.61158465,2797.9,2797.5,3.57461]
[1740349743864,1.61158465,2797.9,2797.4,0.8035]
[1740349744030,1.48218324,2798.0,2797.7,3.57434]
[1740349744363,0.255,2798.2,2798.0,3.57396]
[1740349744572,0.255,2798.2,2798.0,3.57391]
[1740349744886,0.51695514,2798.2,2798.1,3.57385]
[1740349745218,0.51695514,2798.2,2797.8,0.7794]
[1740349745419,0.51695514,2798.2,2797.9,3.57404]
[1740349745650,1.22545585,2798.2,2797.9,7.14809]
[1740349745870,0.70850071,2798.2,2798.0,3.57397]
[1740349746018,0.255,2798.1,2798.0,3.57397]
[1740349746932,0.255,2798.1,2797.8,0.7794]
[1740349747154,0.255,2798.1,2797.9,3.57407]
[1740349747355,0.255,2798.1,2797.8,3.57411]
[1740349748466,0.78760807,2798.1,2797.6,4.36068]
[1740349748670,0.255,2798.1,2797.8,3.57423]
[1740349750973,0.8075,2798.0,2797.6,3.57438]
[1740349751273,0.8075,2798.0,2797.7,3.57436]
[1740349751773,3.57423,2797.9,2797.2,3.575]
[1740349751923,3.57429,2797.8,2797.3,3.57482]
[1740349752128,3.57429,2797.8,2797.4,3.57473]
[1740349752357,3.57423,2797.9,2797.4,3.57473]
[1740349752721,0.821067,2797.9,2797.3,0.11188145]
[1740349752959,3.57429,2797.8,2797.3,3.68663145]
[1740349753136,3.57429,2797.8,2797.3,7.26142145]
[1740349753340,4.36275,2797.7,2797.3,0.11188145]
[1740349753668,0.7883,2797.7,2797.4,3.57465]
[1740349754987,0.7883,2797.7,2797.2,3.57492]
[1740349755474,0.7883,2797.7,2797.1,0.9189981]
[1740349755662,0.7883,2797.7,2797.4,3.57463]
[1740349756660,0.7883,2797.7,2797.3,3.57486]
[1740349756857,0.7883,2797.7,2797.4,3.57471]
[1740349757432,0.7883,2797.7,2797.5,3.57461]
[1740349758176,0.7883,2797.7,2797.3,3.57478]
[1740349758329,0.7883,2797.7,2797.4,3.57467]
[1740349758527,0.73332616,2797.6,2797.4,3.57467]
[1740349759727,0.73332616,2797.6,2797.3,3.57478]
[1740349760133,0.73332616,2797.6,2797.4,3.57468]
[1740349763084,0.73332616,2797.6,2797.3,3.57486]
[1740349763285,0.73332616,2797.6,2797.4,3.57469]
[1740349763779,0.73332616,2797.6,2797.4,3.57474]
[1740349764079,0.73332616,2797.6,2797.3,3.57486]
[1740349764231,0.73332616,2797.6,2797.4,3.57463]
[1740349765380,0.73332616,2797.6,2797.4,7.14928]
[1740349765581,0.73332616,2797.6,2797.4,7.14931]
[1740349765784,0.73332616,2797.6,2797.5,3.57462]
[1740349766352,0.73332616,2797.6,2797.3,3.57478]
[1740349766557,0.73332616,2797.6,2797.4,3.57473]
[1740349767867,0.73332616,2797.6,2797.3,3.57486]
[1740349768075,0.73332616,2797.6,2797.2,3.57492]
[1740349768783,0.73332616,2797.6,2797.4,3.57473]
[1740349769376,1.00176252,2797.6,2797.4,3.57473]
[1740349769574,1.00176252,2797.6,2797.3,3.68664716]
[1740349770609,1.00176252,2797.6,2797.3,3.57476]
[1740349771010,1.00176252,2797.6,2797.4,3.57471]
[1740349771161,1.00176252,2797.6,2797.3,3.57476]
[1740349771362,1.00176252,2797.6,2797.4,3.57468]
[1740349772475,1.00176252,2797.6,2797.4,3.57473]
[1740349772677,1.00176252,2797.6,2797.1,0.9189981]
[1740349772909,1.00176252,2797.6,2797.2,3.57492]
[1740349773098,1.00176252,2797.6,2797.4,3.57474]
[1740349774413,1.00176252,2797.6,2797.2,4.1361993]
[1740349774414,1.00176252,2797.6,2797.2,4.02427181]
[1740349775818,1.00176252,2797.6,2797.3,3.68669886]
[1740349777098,1.00176252,2797.6,2797.3,3.57481]
[1740349777597,1.00176252,2797.6,2797.2,0.44939181]
[1740349777771,1.00176252,2797.6,2797.2,3.5749]
[1740349777972,1.00176252,2797.6,2797.4,3.57472]
[1740349779272,1.00176252,2797.6,2797.1,4.4941081]
[1740349779584,1.00176252,2797.6,2797.3,3.57486]
[1740349780976,1.00176252,2797.6,2797.3,3.57481]
[1740349781275,1.00176252,2797.6,2797.4,0.11188926]
[1740349782705,1.00176252,2797.6,2797.3,7.14958]
[1740349783223,1.00176252,2797.6,2797.4,3.57466]
[1740349784006,1.00176252,2797.6,2797.5,0.11188805]
[1740349790297,1.00176252,2797.6,2797.5,3.68650805]
[1740349792293,1.00176252,2797.6,2797.5,0.11188805]
[1740349793603,1.00176252,2797.6,2797.5,3.68650805]
[1740349793831,1.00176252,2797.6,2797.5,0.11188805]
[1740349796506,1.00176252,2797.6,2797.4,3.57467]
[1740349797047,1.00176252,2797.6,2797.1,0.1497981]
[1740349797256,1.00176252,2797.6,2797.3,3.57486]
[1740349798138,1.00176252,2797.6,2797.4,0.11188938]
[1740349798659,4.57626252,2797.6,2797.4,0.11188938]
[1740349798863,5.25,2797.5,2797.4,0.11188938]
[1740349799312,5.25,2797.5,2797.2,3.57499]
[1740349800248,5.25,2797.5,2797.1,0.1497981]
[1740349800449,0.7589,2797.4,2797.3,3.57487]
[1740349800746,5.25,2797.4,2797.1,0.1497981]
[1740349800908,1.0119,2797.3,2797.2,0.1118953]
[1740349801109,11.19426519,2797.3,2797.2,0.1118953]
[1740349802148,11.19776519,2797.3,2797.2,0.1118953]
[1740349802327,12.67501871,2797.3,2797.2,0.1118953]
[1740349802647,0.7624,2797.2,2797.1,0.1497981]
[1740349804763,6.0124,2797.2,2797.1,0.1497981]
[1740349806877,9.5874,2797.2,2797.1,0.1497981]
[1740349810335,9.6143,2797.2,2797.1,0.1497981]
[1740349810534,11.24199187,2797.2,2797.1,0.1497981]
[1740349813032,15.66999187,2797.2,2797.1,0.1497981]
[1740349814334,15.92399187,2797.2,2797.1,0.1497981]
[1740349824093,17.28148706,2797.2,2797.1,0.1497981]
[1740349850634,17.83148706,2797.2,2797.1,0.1497981]
[1740349860160,17.83148706,2797.2,2797.1,0.0997981]
[1740349867837,17.28148706,2797.2,2797.1,0.0997981]
[1740349868037,16.49218706,2797.2,2797.1,0.0997981]
[1740349873286,17.04218706,2797.2,2797.1,0.0997981]
[1740349878060,16.49218706,2797.2,2797.1,0.0997981]
[1740349879415,17.04218706,2797.2,2797.1,0.0997981]
[1740349883708,16.49218706,2797.2,2797.1,0.0997981]
[1740349886395,17.25448706,2797.2,2797.1,0.0997981]
[1740349889815,17.80448706,2797.2,2797.1,0.0997981]
[1740349912632,16.44699187,2797.2,2797.1,0.0997981]
[1740349912932,17.80448706,2797.2,2797.1,0.0997981]
[1740349913731,17.25448706,2797.2,2797.1,0.0997981]
[1740349919263,3.5764,2796.1,2796.0,0.7781]
[1740349919473,3.5764,2796.1,2795.3,3.57733]
[1740349919474,3.57673,2795.9,2795.3,3.57733]
[1740349919659,8.51100519,2795.9,2795.4,0.7642]
[1740349919859,5.25,2795.8,2795.5,0.7642]
[1740349920267,5.25,2795.8,2795.4,3.68923099]
[1740349920268,6.0747,2795.9,2795.4,0.11196099]
[1740349920472,5.25,2795.9,2795.6,0.7642]
[1740349920646,5.503,2795.9,2795.7,1.198328]
[1740349920842,5.503,2795.9,2795.7,0.7642]
[1740349921245,5.503,2795.9,2795.7,4.3411]
[1740349921466,5.503,2795.9,2795.8,4.34099]
[1740349921636,5.503,2795.9,2795.8,0.7642]
[1740349922173,10.43715519,2795.9,2795.8,0.7642]
[1740349922675,10.18415519,2795.9,2795.8,0.7642]
[1740349922872,6.60749519,2795.9,2795.8,0.7642]
[1740349927557,10.18415519,2795.9,2795.8,0.7642]
[1740349927783,10.18415519,2795.9,2795.5,0.7541]
[1740349929045,3.57686,2795.8,2795.5,0.7541]
[1740349929542,8.82686,2795.8,2795.5,0.7541]
[1740349930689,4.93449519,2795.7,2795.5,0.7541]
[1740349931246,3.57704,2795.6,2795.5,0.7541]
[1740349932283,4.93441519,2795.7,2795.2,0.92598866]
[1740349932581,1.35749519,2795.6,2795.3,3.57741]
[1740349933759,1.35749519,2795.6,2795.2,0.92598866]
[1740349934094,1.35749519,2795.6,2795.3,3.57743]
[1740349934387,1.35749519,2795.6,2795.4,4.36148]
[1740349934987,1.35749519,2795.6,2795.4,0.7842]
[1740349935487,6.60749519,2795.6,2795.4,0.7842]
[1740349937288,6.60749519,2795.6,2795.4,4.36147]
[1740349937891,6.60749519,2795.6,2795.4,4.36143]
[1740349938751,6.60749519,2795.6,2795.4,0.7842]
[1740349938975,6.60749519,2795.6,2795.5,3.57717]
[1740349939203,6.60749519,2795.6,2795.4,4.3615]
[1740349939756,6.60749519,2795.6,2795.5,3.57717]
[1740349940613,6.60749519,2795.6,2795.4,4.36148]
[1740349942391,6.60749519,2795.6,2795.4,0.7842]
[1740349942694,6.60749519,2795.6,2795.4,4.36144]
[1740349944097,6.60749519,2795.6,2795.4,0.7842]
[1740349944299,6.60749519,2795.6,2795.5,3.57717]
[1740349945913,6.60749519,2795.6,2795.4,4.3615]
[1740349947782,6.60749519,2795.6,2795.4,0.7842]
[1740349947987,6.60749519,2795.6,2795.4,4.36142]
[1740349948284,6.60749519,2795.6,2795.5,3.57717]
[1740349949112,6.60749519,2795.6,2795.4,4.36148]
[1740349949315,6.60749519,2795.6,2795.4,0.7842]
[1740349949695,6.60749519,2795.6,2795.5,3.68913645]
[1740349951045,6.60749519,2795.6,2795.5,3.57717]
[1740349951207,6.60749519,2795.6,2795.5,0.33569213]
[1740349952742,6.60749519,2795.6,2795.4,4.36143]
[1740349952931,6.60749519,2795.6,2795.5,3.57717]
[1740349953435,6.60749519,2795.6,2795.4,4.36143]
[1740349953633,6.60749519,2795.6,2795.4,4.36141]
[1740349953820,6.60749519,2795.6,2795.5,3.57717]
[1740349954249,6.60749519,2795.6,2795.5,3.68913605]
[1740349954459,6.60749519,2795.6,2795.5,0.11196605]
[1740349954656,6.60749519,2795.6,2795.5,3.68913605]
[1740349955355,5.25,2795.6,2795.5,5.59320815]
[1740349959259,1.35749519,2795.7,2795.6,3.57704]
[1740349960157,6.60749519,2795.9,2795.8,3.57679]
[1740349961231,6.60749519,2795.9,2795.6,0.44767654]
[1740349961555,6.60749519,2795.9,2795.6,3.68894605]
[1740349961756,6.60749519,2795.9,2795.6,0.11196605]
[1740349962345,10.18424519,2795.9,2795.7,0.11196605]
[1740349962873,4.34409,2795.8,2795.7,0.44733386]
[1740349963661,4.34409,2795.8,2795.7,0.11196605]
[1740349963845,4.34409,2795.8,2795.4,0.44733386]
[1740349964047,1.35749519,2795.5,2795.4,0.44733386]
[1740349964673,4.93466519,2795.5,2795.4,0.44733386]
[1740349965373,10.18466519,2795.5,2795.4,0.44733386]
[1740349965875,12.39324371,2795.5,2795.4,0.33536781]
[1740349966063,8.81607371,2795.5,2795.2,0.11028866]
[1740349966369,4.93492519,2795.3,2795.2,0.11028866]
[1740349966573,10.18492519,2795.3,2795.2,0.11028866]
[1740349966773,11.01732519,2795.3,2795.2,0.11028866]
[1740349966978,14.54720275,2795.3,2795.2,8.66e-06]
[1740349967269,3.57858,2794.4,2794.3,0.1497981]
[1740349967473,10.44107519,2794.4,2794.3,0.1497981]
[1740349967777,11.89124655,2794.4,2794.3,0.1497981]
[1740349968074,8.31266655,2794.4,2794.3,0.1497981]
[1740349968438,4.96124,2794.2,2794.1,8.1e-06]
[1740349968974,7.76680655,2794.2,2794.1,8.1e-06]
[1740349969275,14.9915619,2794.7,2794.1,8.1e-06]
[1740349969276,0.48550869,2795.4,2794.1,0.8009081]
[1740349969505,0.71893409,2795.1,2794.1,0.8009081]
[1740349969669,2.80766655,2794.5,2794.1,0.8009081]
[1740349970758,2.80766655,2794.5,2794.1,4.3798481]
[1740349971494,2.80766655,2794.5,2794.1,0.8009081]
[1740349972060,6.38619655,2794.5,2794.1,0.8009081]
[1740349972262,3.57858,2794.4,2794.1,8.1e-06]
[1740349973680,3.57874,2794.3,2794.1,8.1e-06]
[1740349973984,4.36998,2794.4,2794.1,8.1e-06]
[1740349974189,7.94865,2794.4,2794.1,8.1e-06]
[1740349974359,5.25,2794.3,2794.1,8.1e-06]
[1740349974561,0.265,2794.2,2794.1,8.1e-06]
[1740349975282,3.84384,2794.2,2794.1,8.1e-06]
[1740349976001,11.90050655,2794.2,2794.1,8.1e-06]
[1740349976403,13.52756921,2794.2,2794.1,8.1e-06]
[1740349976602,14.32316921,2794.2,2794.1,8.1e-06]
[1740349977498,14.87316921,2794.2,2794.1,8.1e-06]
[1740349977875,14.60916921,2794.2,2794.1,8.1e-06]
[1740349978183,14.87316921,2794.2,2794.1,8.1e-06]
[1740349978590,14.32316921,2794.2,2794.1,8.1e-06]
[1740349979015,15.03191416,2794.2,2794.1,8.1e-06]
[1740349979696,12.22424761,2794.2,2794.1,8.1e-06]
[1740349979884,15.03191416,2794.2,2794.1,8.1e-06]
[1740349980290,21.38958071,2794.2,2794.1,8.1e-06]
[1740349980491,6.73904495,2794.2,2794.1,8.1e-06]
[1740349980814,16.1255515,2794.2,2794.1,8.1e-06]
[1740349980987,19.48321805,2794.2,2794.1,8.1e-06]
[1740349981181,19.75221805,2794.2,2794.1,8.1e-06]
[1740349981787,16.9445515,2794.2,2794.1,8.1e-06]
[1740349982193,21.8045562,2794.2,2794.1,8.1e-06]
[1740349982586,18.99688965,2794.2,2794.1,8.1e-06]
[1740349983811,18.44688965,2794.2,2794.1,8.1e-06]
[1740349984109,16.3945515,2794.2,2794.1,8.1e-06]
[1740349984530,12.6142515,2794.2,2794.1,8.1e-06]
[1740349985215,9.0354115,2794.2,2794.1,8.1e-06]
[1740349985413,12.6142515,2794.2,2794.1,8.1e-06]
[1740349990554,13.1642515,2794.2,2794.1,8.1e-06]
[1740349990757,15.66544865,2794.2,2794.1,8.1e-06]
[1740349991864,18.66544865,2794.2,2794.1,8.1e-06]
[1740349993438,18.66544865,2794.2,2793.8,0.825]
[1740349993439,3.57922,2793.9,2793.8,0.825]
[1740349993752,12.97918655,2793.9,2793.8,0.825]
[1740349993956,14.63501621,2793.9,2793.8,0.825]
[1740349994255,17.63501621,2793.9,2793.7,0.825]
[1740349994461,4.92165,2793.8,2793.7,0.825]
[1740349996162,7.92165,2793.8,2792.7,0.7571]
[1740349996465,3.58043,2793.0,2792.7,0.7571]
[1740349996660,5.518,2792.9,2792.7,1.192493]
[1740349996865,5.518,2792.9,2792.7,0.7571]
[1740349997427,9.0986,2792.9,2792.7,0.7571]
[1740349997622,5.518,2792.9,2792.7,0.7571]
[1740349997824,3.58063,2792.8,2792.7,0.7071]
[1740349998052,3.58076,2792.7,2792.6,0.016]
[1740349998372,10.37946565,2792.7,2792.6,0.016]
[1740349998527,10.37946565,2792.7,2790.3,0.69931373]
[1740349998528,0.7963,2791.5,2790.3,0.69931373]
[1740349998728,0.7963,2791.5,2790.0,1.0]
[1740349998729,3.5829,2791.1,2790.0,1.0]
[1740349998944,3.58291,2791.1,2790.3,3.58379]
[1740349999240,3.58308,2790.9,2790.3,3.58374]
[1740349999455,5.25,2790.9,2790.6,3.58334]
[1740349999646,5.25,2790.9,2790.7,3.58332]
[1740349999832,5.25,2790.9,2790.4,3.942034]
[1740350000023,5.25,2790.9,2790.4,3.941984]
[1740350000224,5.25,2790.9,2790.4,0.358374]
[1740350000425,5.25,2790.9,2790.6,3.58338]
[1740350000658,3.58197,2791.8,2790.0,1.0]
[1740350000659,5.25,2791.5,2791.2,3.58259]
[1740350000975,0.276,2791.5,2791.4,3.5823]
[1740350001532,0.276,2791.5,2791.3,0.8197]
[1740350001758,5.25,2791.6,2791.3,4.40218]
[1740350001969,5.526,2791.6,2791.4,0.440218]
[1740350002346,5.526,2791.6,2791.5,3.5823]
[1740350002668,5.25,2792.2,2792.1,3.58153]
[1740350002971,0.276,2792.4,2792.3,3.58127]
[1740350003186,0.276,2792.4,2792.3,4.297534]
[1740350003581,5.526,2792.4,2792.3,4.297534]
[1740350003780,5.25,2792.4,2792.3,4.297534]
[1740350004140,5.25,2792.5,2792.4,3.58114]
[1740350004477,5.25,2792.6,2792.5,3.58102]
[1740350004681,5.25,2792.6,2792.5,4.3688624]
[1740350005743,5.526,2792.9,2792.8,3.58063]
[1740350005938,5.526,2792.9,2792.7,3.58076]
[1740350006246,5.25,2792.9,2792.8,3.58063]
[1740350007983,0.276,2793.3,2793.1,3.58013]
[1740350008384,0.276,2793.3,2793.1,4.296187]
[1740350008543,0.276,2793.3,2793.1,3.58013]
[1740350008750,0.276,2793.3,2793.1,7.16027]
[1740350008951,0.276,2793.3,2793.1,3.58013]
[1740350009393,0.276,2793.3,2793.1,7.16029]
[1740350009683,0.276,2793.3,2793.1,3.58013]
[1740350010449,0.276,2793.3,2793.2,3.58012]
[1740350010776,0.276,2793.3,2793.1,3.938143]
[1740350010985,0.276,2793.3,2793.1,7.518323]
[1740350011199,0.276,2793.3,2793.1,3.938143]
[1740350011408,5.25,2793.2,2793.1,3.938143]
[1740350015077,0.8123,2793.8,2793.1,3.938143]
[1740350015078,5.25,2794.0,2793.9,3.57922]
[1740350015277,5.25,2794.4,2794.3,3.57871]
[1740350016102,5.25,2794.4,2793.8,0.7698]
[1740350016311,5.2,2794.4,2794.3,3.57871]
[1740350017203,5.2,2794.4,2793.8,0.7698]
[1740350017379,5.2,2794.4,2794.0,3.579]
[1740350017564,5.2,2794.4,2794.0,7.15801]
[1740350017775,0.7621,2794.3,2793.5,4.34946]
[1740350018106,3.85484,2794.2,2793.6,3.57953]
[1740350018307,7.43377,2794.2,2793.6,3.57953]
[1740350018510,7.43377,2794.2,2793.5,4.34946]
[1740350018511,0.276,2794.2,2793.5,0.7698]
[1740350018683,5.2,2794.1,2793.8,3.57927]
[1740350019069,5.2,2794.1,2793.5,4.34952]
[1740350019274,8.77906,2794.1,2793.5,5.142465]
[1740350019475,5.2,2794.1,2793.5,0.7698]
[1740350019785,5.2,2794.1,2793.6,3.57961]
[1740350019995,5.2,2794.1,2793.8,3.57927]
[1740350020202,5.2,2794.1,2793.6,3.57954]
[1740350020509,5.2,2794.1,2793.6,3.57961]
[1740350020709,5.2,2794.1,2794.0,3.57909]
[1740350022314,5.2,2794.1,2793.9,3.57921]
[1740350022508,5.2,2794.1,2793.8,3.57934]
[1740350023007,5.2,2794.1,2793.9,3.57914]
[1740350023199,5.2,2794.1,2794.0,3.57909]
[1740350024322,5.2,2794.1,2793.9,3.57922]
[1740350024497,5.2,2794.1,2793.9,3.57914]
[1740350024686,5.2,2794.1,2794.0,3.57909]
[1740350025213,5.07233112,2794.7,2794.0,3.57909]
[1740350025214,5.2,2794.8,2794.6,3.57827]
[1740350025513,5.2,2794.8,2794.7,3.5782]
[1740350025677,5.2,2795.0,2794.9,3.57794]
[1740350026509,5.2,2795.0,2794.6,0.7694]
[1740350026845,5.2,2795.0,2794.8,3.57805]
[1740350027422,5.2,2795.0,2794.6,0.7694]
[1740350027923,5.2,2795.0,2794.9,3.57794]
[1740350028530,5.2,2795.0,2794.8,3.57806]
[1740350028843,5.2,2795.0,2794.6,4.34766]
[1740350028997,6.105469,2795.0,2794.6,3.57826]
[1740350029195,6.105469,2795.0,2794.8,3.57805]
[1740350029413,6.105469,2795.0,2794.7,3.57819]
[1740350029851,6.105469,2795.0,2794.8,3.57806]
[1740350030612,6.105469,2795.0,2794.3,0.8065]
[1740350030817,6.105469,2795.0,2794.9,3.57794]
[1740350031461,6.105469,2795.0,2794.8,3.57807]
[1740350032119,6.105469,2795.0,2794.7,3.57809]
[1740350032325,6.105469,2795.0,2794.6,3.57827]
[1740350032526,6.105469,2795.0,2794.8,3.57801]
[1740350032727,5.2,2795.0,2794.9,3.57794]
[1740350033146,5.2,2795.0,2794.8,4.3484]
[1740350033377,5.2,2795.0,2794.9,3.57794]
[1740350036432,5.476,2795.4,2794.8,4.34847]
[1740350036633,5.476,2795.4,2795.2,3.57753]
[1740350036833,6.10365,2795.4,2795.2,3.57753]
[1740350037161,6.10365,2795.4,2795.1,3.57767]
[1740350038066,6.10365,2795.4,2795.1,3.57758]
[1740350038668,6.10365,2795.4,2794.9,3.57784]
[1740350038830,3.57746,2795.3,2794.9,3.57784]
[1740350039329,9.68096,2795.4,2794.9,7.1557]
[1740350039656,9.68096,2795.4,2794.8,0.7704]
[1740350039657,6.10365,2795.4,2795.0,3.5777]
[1740350039855,5.476,2795.4,2795.1,3.57762]
[1740350040056,5.476,2795.4,2795.0,7.15544]
[1740350040256,5.476,2795.4,2795.0,3.5777]
[1740350041275,5.476,2795.4,2795.1,3.57768]
[1740350041874,5.476,2795.4,2795.0,3.5777]
[1740350042777,5.476,2795.4,2795.0,7.15544]
[1740350043082,5.2,2795.4,2795.3,3.57743]
[1740350043371,5.2,2795.4,2795.2,3.57748]
[1740350044279,5.2,2795.4,2795.3,4.37313]
[1740350047104,5.2,2795.4,2795.3,3.57743]
[1740350047606,5.2,2795.4,2795.2,3.57748]
[1740350047904,5.2,2795.4,2795.1,3.57768]
[1740350048365,8.77737,2795.4,2794.9,3.57786]
[1740350048677,6.513651,2795.4,2795.0,3.5777]
[1740350048878,10.090981,2795.4,2795.0,3.5777]
[1740350049701,10.090981,2795.4,2794.9,3.57793]
[1740350049891,5.2,2795.4,2795.0,3.57771]
[1740350050094,5.2,2795.4,2795.1,3.57764]
[1740350050293,8.88377,2795.4,2794.9,3.57786]
[1740350051512,9.15777,2795.4,2795.0,3.57779]
[1740350052008,9.15777,2795.4,2794.9,3.57793]
[1740350052214,12.73518,2795.4,2794.9,3.57793]
[1740350052392,9.15777,2795.4,2794.8,3.57799]
[1740350052598,3.57744,2795.3,2794.8,3.57799]
[1740350052791,3.57744,2795.3,2794.9,3.57793]
[1740350053403,3.57743,2795.3,2794.8,3.57799]
[1740350053610,3.57743,2795.3,2794.8,7.156]
[1740350054086,3.57743,2795.3,2794.8,3.57799]
[1740350054289,5.2,2795.2,2794.9,3.57794]
[1740350054484,5.2,2795.2,2795.0,3.57775]
[1740350054986,5.2,2795.2,2794.8,3.57799]
[1740350055189,5.2,2795.2,2795.0,3.5778]
[1740350055949,5.2,2795.2,2795.0,7.15554]
[1740350056214,5.2,2795.2,2795.0,3.57774]
[1740350057220,5.2,2795.2,2795.1,3.57768]
[1740350058322,5.2,2795.2,2795.0,3.57779]
[1740350058628,5.2,2795.2,2794.9,3.57788]
[1740350060530,5.2,2795.2,2795.0,3.57781]
[1740350061529,5.2,2795.2,2794.8,3.57798]
[1740350062186,5.2,2795.2,2794.8,7.15599]
[1740350063191,5.2,2795.2,2794.8,3.57798]
[1740350063394,0.7507,2795.1,2794.7,3.57819]
[1740350063726,3.57788,2795.0,2794.4,0.8286]
[1740350063896,3.57794,2794.9,2794.3,3.57862]
[1740350064295,3.57808,2794.8,2794.3,3.57862]
[1740350064484,8.77808,2794.8,2794.3,3.57862]
[1740350064689,3.57826,2794.7,2794.2,7.40742]
[1740350065392,3.57826,2794.7,2794.3,3.57865]
[1740350066304,3.57826,2794.7,2794.2,3.8286]
[1740350066501,3.57826,2794.7,2794.2,7.4074]
[1740350067029,3.5784,2794.6,2794.2,0.8286]
[1740350067240,3.57846,2794.5,2794.1,3.5789]
[1740350067739,3.57864,2794.4,2794.0,3.57898]
[1740350067937,3.57859,2794.4,2793.9,0.8286]
[1740350068239,3.57896,2794.2,2793.7,4.40797]
[1740350068540,4.32967,2794.1,2793.6,6.5796]
[1740350068915,4.32967,2794.1,2793.7,3.57946]
[1740350069645,3.57933,2793.9,2793.3,3.5799]
[1740350069938,3.57933,2793.9,2793.4,3.5798]
[1740350071141,3.85043,2793.8,2793.3,3.5799]
[1740350071330,4.39966,2793.7,2793.2,4.3319703]
[1740350072844,3.57967,2793.6,2793.1,3.5802]
[1740350073539,3.57967,2793.6,2793.1,7.16036]
[1740350073740,9.59958,2793.7,2793.2,3.58005]
[1740350074040,6.0201,2793.7,2793.4,3.57981]
[1740350074426,6.0201,2793.7,2793.0,4.40656]
[1740350074633,3.57967,2793.6,2793.1,3.58018]
[1740350075963,3.57974,2793.5,2793.1,3.58018]
[1740350076145,3.57988,2793.4,2793.0,3.0]
[1740350077542,3.57988,2793.4,2793.0,6.58036]
[1740350077752,3.58001,2793.3,2792.9,3.58038]
[1740350078045,8.78007,2793.3,2792.8,4.36527]
[1740350078218,8.78007,2793.3,2792.8,7.36527]
[1740350079249,4.3389,2793.2,2792.8,3.7847]
[1740350079405,4.3389,2793.2,2792.8,3.0]
[1740350079932,4.3389,2793.2,2792.8,6.5806]
[1740350080539,0.7587,2793.2,2792.5,1.5725424]
[1740350080718,5.9587,2793.2,2793.0,3.58037]
[1740350080921,5.9587,2793.2,2792.9,3.58048]
[1740350081444,5.9587,2793.2,2792.8,7.16109]
[1740350081948,5.9587,2793.2,2792.9,3.58043]
[1740350082148,5.9587,2793.2,2792.9,3.5805]
[1740350082364,5.9587,2793.2,2792.8,7.16109]
[1740350082666,5.9587,2793.2,2792.8,7.16108]
[1740350083567,5.9587,2793.2,2792.9,3.58047]
[1740350083963,5.2,2793.2,2793.1,3.58025]
[1740350084130,5.2,2793.2,2793.0,3.58026]
[1740350084326,5.2,2793.2,2792.7,3.58069]
[1740350084664,8.78017,2793.2,2792.7,3.58069]
[1740350085875,3.58025,2793.1,2792.7,3.58069]
[1740350086533,3.58025,2793.1,2792.7,7.16139]
[1740350086733,5.2,2793.2,2792.7,7.16139]
[1740350087269,5.2,2793.2,2792.7,3.58069]
[1740350087566,8.78018,2793.2,2792.8,3.58062]
[1740350088531,5.2,2793.2,2792.8,3.58062]
[1740350088853,5.2,2793.2,2792.9,3.58044]
[1740350089031,5.2,2793.2,2793.0,3.58031]
[1740350089569,5.2,2793.2,2792.9,3.58049]
[1740350090655,5.2,2793.2,2792.8,7.16111]
[1740350091153,5.2,2793.2,2792.9,3.58049]
[1740350091554,5.469,2793.2,2792.9,3.58049]
[1740350092163,5.469,2793.2,2792.8,3.58055]
[1740350093284,5.469,2793.2,2792.8,7.16112]
[1740350093676,5.469,2793.2,2792.9,3.58049]
[1740350093878,5.469,2793.2,2792.8,3.58055]
[1740350094244,5.469,2793.2,2792.9,3.58049]
[1740350095183,5.2,2793.2,2792.9,3.58049]
[1740350095381,5.2,2793.2,2792.6,0.7847]
[1740350095682,5.2,2793.2,2793.0,3.58035]
[1740350096794,5.2,2793.2,2793.1,3.58025]
[1740350097095,5.2,2793.2,2792.8,3.58052]
[1740350097886,5.2,2793.2,2793.1,3.58025]
[1740350098180,5.2,2793.2,2792.9,3.58046]
[1740350098362,5.2,2793.2,2793.0,3.58037]
[1740350099787,5.2,2793.2,2792.7,3.58076]